[Event "*** MasterClass Titled Tuesday Blitz"]
[Site "Chess.com"]
[Date "2017.10.03"]
[Round "4"]
[White "guilhermedeola"]
[Black "Daniela_Movileanu"]
[Result "1-0"]
[WhiteElo "1984"]
[BlackElo "2086"]
[TimeControl "180+2"]
[EndTime "13:51:03 PDT"]
[Termination "guilhermedeola won by resignation"]

1. d4 {[%clk 0:03:00.6]} 1... Nf6 {[%clk 0:02:59.7]} 2. c4 {[%clk 0:03:01.1]}
2... g6 {[%clk 0:03:00.9]} 3. f3 {[%clk 0:03:01.5]} 3... d5 {[%clk 0:03:00.6]}
4. cxd5 {[%clk 0:03:02.4]} 4... Nxd5 {[%clk 0:03:02.5]} 5. e4 {[%clk 0:03:03.9]}
5... Nb6 {[%clk 0:03:03.5]} 6. Nc3 {[%clk 0:03:04.8]} 6... Bg7 {[%clk
0:03:04.9]} 7. Be3 {[%clk 0:03:03]} 7... O-O {[%clk 0:03:05.4]} 8. Qd2 {[%clk
0:02:59.9]} 8... e5 {[%clk 0:03:06]} 9. d5 {[%clk 0:03:00.5]} 9... c6 {[%clk
0:03:07.2]} 10. dxc6 {[%clk 0:02:54.5]} 10... Nxc6 {[%clk 0:03:07.2]} 11. Qxd8
{[%clk 0:02:48.8]} 11... Rxd8 {[%clk 0:03:09.1]} 12. Kf2 {[%clk 0:02:44.3]}
12... Be6 {[%clk 0:03:07.3]} 13. Bb5 {[%clk 0:02:44.4]} 13... Nd4 {[%clk
0:03:06.2]} 14. Nge2 {[%clk 0:02:38.2]} 14... Rac8 {[%clk 0:02:52.8]} 15. Bd3
{[%clk 0:02:22.4]} 15... Bc4 {[%clk 0:02:49.8]} 16. Rad1 {[%clk 0:02:13.6]}
16... Bxd3 {[%clk 0:02:47.7]} 17. Rxd3 {[%clk 0:02:14.4]} 17... Nc4 {[%clk
0:02:46.5]} 18. Bc1 {[%clk 0:02:14.3]} 18... Bf8 {[%clk 0:02:22.7]} 19. Rhd1
{[%clk 0:02:14.8]} 19... Bc5 {[%clk 0:02:20.3]} 20. Kf1 {[%clk 0:02:15.9]} 20...
Re8 {[%clk 0:02:14.2]} 21. Nd5 {[%clk 0:02:16.4]} 21... Kg7 {[%clk 0:02:14.4]}
22. Nec3 {[%clk 0:02:12.6]} 22... b5 {[%clk 0:02:06.7]} 23. b3 {[%clk
0:02:12.8]} 23... Nb6 {[%clk 0:01:57.4]} 24. Bb2 {[%clk 0:02:13.5]} 24... Nd7
{[%clk 0:01:40.2]} 25. f4 {[%clk 0:01:40.8]} 25... exf4 {[%clk 0:01:33.6]} 26.
Nxb5 {[%clk 0:01:39.4]} 26... Rxe4 {[%clk 0:01:07.8]} 27. Nxd4 {[%clk
0:01:35.5]} 27... Ne5 {[%clk 0:01:05.2]} 28. Nf3 {[%clk 0:01:35.8]} 28... f6
{[%clk 0:01:04.3]} 29. Nxe5 {[%clk 0:01:19.1]} 29... fxe5 {[%clk 0:01:06.2]} 30.
Nc3 {[%clk 0:01:13.9]} 30... Rd4 {[%clk 0:01:00.6]} 31. Na4 {[%clk 0:01:12.9]}
31... Rxd3 {[%clk 0:00:57.8]} 32. Bxe5+ {[%clk 0:01:13.6]} 32... Kf7 {[%clk
0:00:58.1]} 33. Rxd3 {[%clk 0:01:13.8]} 33... Be3 {[%clk 0:00:59.7]} 34. Nc3
{[%clk 0:01:05.4]} 34... Ke6 {[%clk 0:00:58.5]} 35. Bg7 {[%clk 0:00:56.3]} 35...
g5 {[%clk 0:00:53.5]} 36. Ke2 {[%clk 0:00:50.2]} 36... g4 {[%clk 0:00:53.3]} 37.
h3 {[%clk 0:00:47.4]} 37... Rg8 {[%clk 0:00:50.1]} 38. Bd4 {[%clk 0:00:43.1]}
38... Bxd4 {[%clk 0:00:42.7]} 39. Rxd4 {[%clk 0:00:43.6]} 39... f3+ {[%clk
0:00:43.8]} 40. gxf3 {[%clk 0:00:40.2]} 40... gxh3 {[%clk 0:00:44.7]} 41. Rh4
{[%clk 0:00:40.5]} 41... Rg2+ {[%clk 0:00:44.2]} 42. Kd3 {[%clk 0:00:38]} 42...
h2 {[%clk 0:00:44.5]} 43. Rxh7 {[%clk 0:00:37.9]} 43... Rf2 {[%clk 0:00:42.9]}
44. Ke3 {[%clk 0:00:32.3]} 44... Rc2 {[%clk 0:00:42.5]} 45. Ne2 {[%clk 0:00:33]}
45... Rxa2 {[%clk 0:00:41.1]} 46. Rxh2 {[%clk 0:00:33.5]} 46... Rb2 {[%clk
0:00:42.1]} 47. Nd4+ {[%clk 0:00:33.4]} 47... Kd5 {[%clk 0:00:43.1]} 48. Rxb2
{[%clk 0:00:32.9]} 1-0

[Event "*** MasterClass Titled Tuesday Blitz"]
[Site "Chess.com"]
[Date "2017.10.03"]
[Round "4"]
[White "Sethu0025"]
[Black "JSPrepz"]
[Result "1-0"]
[WhiteElo "2643"]
[BlackElo "2532"]
[TimeControl "180+2"]
[EndTime "13:51:10 PDT"]
[Termination "Sethu0025 won by checkmate"]

1. e4 {[%clk 0:03:01.9]} 1... e6 {[%clk 0:02:57.8]} 2. d4 {[%clk 0:03:02.4]}
2... d5 {[%clk 0:02:53.9]} 3. Nc3 {[%clk 0:03:03.8]} 3... Nf6 {[%clk 0:02:55]}
4. e5 {[%clk 0:03:04.9]} 4... Nfd7 {[%clk 0:02:56]} 5. f4 {[%clk 0:03:06.5]}
5... c5 {[%clk 0:02:57.7]} 6. Nf3 {[%clk 0:03:08.1]} 6... Nc6 {[%clk 0:02:59.2]}
7. Be3 {[%clk 0:03:09.7]} 7... Be7 {[%clk 0:03:00.3]} 8. Qd2 {[%clk 0:03:10.6]}
8... O-O {[%clk 0:03:01.3]} 9. dxc5 {[%clk 0:03:11.8]} 9... Qa5 {[%clk
0:03:01.9]} 10. a3 {[%clk 0:03:10.7]} 10... Bxc5 {[%clk 0:03:01]} 11. Bxc5
{[%clk 0:03:10.8]} 11... Qxc5 {[%clk 0:02:49.4]} 12. O-O-O {[%clk 0:03:11.5]}
12... Rb8 {[%clk 0:02:44.6]} 13. Bd3 {[%clk 0:02:56.9]} 13... h6 {[%clk
0:02:27.1]} 14. Ne2 {[%clk 0:02:52.4]} 14... b5 {[%clk 0:02:25.9]} 15. b4 {[%clk
0:02:49.4]} 15... Qb6 {[%clk 0:02:22.3]} 16. c3 {[%clk 0:02:43.7]} 16... a5
{[%clk 0:02:23.3]} 17. Kb2 {[%clk 0:02:42.8]} 17... Qc7 {[%clk 0:02:20.5]} 18.
Ned4 {[%clk 0:02:42.8]} 18... Ba6 {[%clk 0:02:19.7]} 19. Nxc6 {[%clk 0:02:39.5]}
19... Qxc6 {[%clk 0:02:19.8]} 20. Nd4 {[%clk 0:02:41.4]} 20... Qc7 {[%clk
0:02:21]} 21. g4 {[%clk 0:02:36]} 21... Nb6 {[%clk 0:02:15.7]} 22. h4 {[%clk
0:02:31.3]} 22... Rfc8 {[%clk 0:02:15.6]} 23. Rc1 {[%clk 0:02:28.5]} 23... Qa7
{[%clk 0:01:11.2]} 24. g5 {[%clk 0:02:10.1]} 24... Na4+ {[%clk 0:00:55.9]} 25.
Kb3 {[%clk 0:02:09.5]} 25... h5 {[%clk 0:00:56.1]} 26. g6 {[%clk 0:02:08.8]}
26... fxg6 {[%clk 0:00:35.6]} 27. Bxg6 {[%clk 0:02:01.8]} 27... axb4 {[%clk
0:00:35.7]} 28. axb4 {[%clk 0:01:59.2]} 28... Rc4 {[%clk 0:00:35.2]} 29. Nxe6
{[%clk 0:01:39.9]} 29... Rbc8 {[%clk 0:00:30.6]} 30. Rh3 {[%clk 0:01:39.6]}
30... d4 {[%clk 0:00:25.1]} 31. Rg3 {[%clk 0:00:47.3]} 31... dxc3 {[%clk
0:00:15.2]} 32. Bh7+ {[%clk 0:00:20.3]} 32... Kh8 {[%clk 0:00:15.9]} 33. Qe2
{[%clk 0:00:20.4]} 33... Qf7 {[%clk 0:00:08.5]} 34. f5 {[%clk 0:00:20.9]} 34...
c2 {[%clk 0:00:08.1]} 35. Bg6 {[%clk 0:00:19.9]} 35... Rc3+ {[%clk 0:00:07.9]}
36. Rxc3 {[%clk 0:00:19.7]} 36... Rxc3+ {[%clk 0:00:09.5]} 37. Ka2 {[%clk
0:00:21.2]} 37... Rf3 {[%clk 0:00:02.6]} 38. Qxf3 {[%clk 0:00:21.8]} 38... Nc3+
{[%clk 0:00:02.4]} 39. Qxc3 {[%clk 0:00:22.1]} 39... Qa7 {[%clk 0:00:04]} 40.
Kb2 {[%clk 0:00:22.4]} 40... Bb7 {[%clk 0:00:04.8]} 41. Rxc2 {[%clk 0:00:22]}
41... Bd5 {[%clk 0:00:03.2]} 42. Qc8# {[%clk 0:00:22.4]} 1-0

[Event "*** MasterClass Titled Tuesday Blitz"]
[Site "Chess.com"]
[Date "2017.10.03"]
[Round "4"]
[White "gmcorrales"]
[Black "kleinebeer98"]
[Result "1-0"]
[WhiteElo "2656"]
[BlackElo "2493"]
[TimeControl "180+2"]
[EndTime "13:51:12 PDT"]
[Termination "gmcorrales won on time"]

1. e4 {[%clk 0:03:00.3]} 1... e5 {[%clk 0:02:57.6]} 2. Nf3 {[%clk 0:03:00.7]}
2... Nc6 {[%clk 0:02:58.5]} 3. Bb5 {[%clk 0:03:01.8]} 3... f5 {[%clk 0:02:59.6]}
4. Nc3 {[%clk 0:03:01.5]} 4... fxe4 {[%clk 0:02:59.3]} 5. Bxc6 {[%clk
0:03:02.7]} 5... dxc6 {[%clk 0:02:53]} 6. Nxe4 {[%clk 0:03:03.4]} 6... Nf6
{[%clk 0:02:44.8]} 7. Qe2 {[%clk 0:03:04.1]} 7... Be7 {[%clk 0:02:18.4]} 8.
Nxf6+ {[%clk 0:02:46.2]} 8... Bxf6 {[%clk 0:01:35.4]} 9. Nxe5 {[%clk 0:02:42]}
9... O-O {[%clk 0:01:35.3]} 10. Qc4+ {[%clk 0:01:41.6]} 10... Kh8 {[%clk
0:00:51.8]} 11. Nf7+ {[%clk 0:01:41.3]} 11... Rxf7 {[%clk 0:00:53]} 12. Qxf7
{[%clk 0:01:43.2]} 12... Bf5 {[%clk 0:00:48.6]} 13. d3 {[%clk 0:01:26]} 13...
Bg6 {[%clk 0:00:34.5]} 14. Qe6 {[%clk 0:01:25.9]} 14... Qd4 {[%clk 0:00:17.8]}
15. O-O {[%clk 0:01:25.8]} 15... Re8 {[%clk 0:00:19.3]} 16. Qh3 {[%clk
0:01:26.5]} 16... b6 {[%clk 0:00:12.5]} 17. Qf3 {[%clk 0:00:57.8]} 17... Qc5
{[%clk 0:00:06.1]} 18. c3 {[%clk 0:00:55.3]} 18... Bh5 {[%clk 0:00:06.8]} 19.
Qg3 {[%clk 0:00:35.1]} 19... Qb5 {[%clk 0:00:08]} 20. a4 {[%clk 0:00:33.1]}
20... Qb3 {[%clk 0:00:08.9]} 21. Bg5 {[%clk 0:00:31.4]} 21... Be5 {[%clk
0:00:06.4]} 22. Bf4 {[%clk 0:00:29.5]} 22... Bxf4 {[%clk 0:00:05.4]} 23. Qxf4
{[%clk 0:00:31.4]} 23... Qxb2 {[%clk 0:00:07.3]} 24. Rae1 {[%clk 0:00:30.3]}
24... Be2 {[%clk 0:00:08]} 25. Qc4 {[%clk 0:00:17.1]} 25... Rg8 {[%clk
0:00:04.9]} 26. Rb1 {[%clk 0:00:16.8]} 26... Qd2 {[%clk 0:00:05.2]} 27. Rfe1
{[%clk 0:00:14.1]} 27... Bxd3 {[%clk 0:00:05.9]} 28. Qd4 {[%clk 0:00:15.3]}
28... c5 {[%clk 0:00:04]} 29. Qd7 {[%clk 0:00:16.1]} 29... Qxc3 {[%clk
0:00:04.2]} 30. Rbc1 {[%clk 0:00:16.4]} 30... Qa3 {[%clk 0:00:04.6]} 31. Qxc7
{[%clk 0:00:16.1]} 31... c4 {[%clk 0:00:05.5]} 32. Qxa7 {[%clk 0:00:16.8]} 32...
b5 {[%clk 0:00:05.8]} 33. a5 {[%clk 0:00:15.4]} 33... b4 {[%clk 0:00:05.5]} 34.
a6 {[%clk 0:00:15.5]} 34... b3 {[%clk 0:00:06.7]} 35. Qb7 {[%clk 0:00:12.2]}
35... b2 {[%clk 0:00:08]} 36. Rcd1 {[%clk 0:00:13]} 36... c3 {[%clk 0:00:04.3]}
37. Rxd3 {[%clk 0:00:12]} 37... c2 {[%clk 0:00:04.8]} 38. Rxa3 {[%clk
0:00:12.9]} 38... c1=Q {[%clk 0:00:05.7]} 39. Re3 {[%clk 0:00:13.5]} 39... h6
{[%clk 0:00:03.9]} 40. Re2 {[%clk 0:00:13.4]} 40... Rd8 {[%clk 0:00:03.3]} 41.
Qxb2 {[%clk 0:00:13]} 1-0

[Event "*** MasterClass Titled Tuesday Blitz"]
[Site "Chess.com"]
[Date "2017.10.03"]
[Round "4"]
[White "SantoBlue"]
[Black "Batica1984"]
[Result "0-1"]
[WhiteElo "2549"]
[BlackElo "2628"]
[TimeControl "180+2"]
[EndTime "13:51:14 PDT"]
[Termination "Batica1984 won by resignation"]

1. Nf3 {[%clk 0:03:01.9]} 1... c5 {[%clk 0:02:59.2]} 2. e4 {[%clk 0:02:57.2]}
2... e6 {[%clk 0:02:57.6]} 3. Nc3 {[%clk 0:02:57.2]} 3... Nc6 {[%clk 0:02:57.9]}
4. d4 {[%clk 0:02:58]} 4... cxd4 {[%clk 0:02:58.8]} 5. Nxd4 {[%clk 0:02:59.9]}
5... Qc7 {[%clk 0:03:00.3]} 6. g3 {[%clk 0:02:58]} 6... a6 {[%clk 0:03:01]} 7.
Bg2 {[%clk 0:02:58.8]} 7... Nf6 {[%clk 0:03:02.6]} 8. O-O {[%clk 0:02:59.1]}
8... h5 {[%clk 0:03:03.4]} 9. Re1 {[%clk 0:02:56.2]} 9... h4 {[%clk 0:02:41.2]}
10. Bf4 {[%clk 0:01:46.8]} 10... Ne5 {[%clk 0:02:16.8]} 11. Nb3 {[%clk
0:01:27.6]} 11... hxg3 {[%clk 0:02:14.6]} 12. hxg3 {[%clk 0:01:27.7]} 12... d6
{[%clk 0:02:14.6]} 13. a4 {[%clk 0:01:24.8]} 13... Bd7 {[%clk 0:02:13.9]} 14. a5
{[%clk 0:01:26.2]} 14... Be7 {[%clk 0:02:13.2]} 15. Qd4 {[%clk 0:01:25.8]} 15...
Bc6 {[%clk 0:02:13.1]} 16. Na4 {[%clk 0:01:20.9]} 16... Nfd7 {[%clk 0:02:13.1]}
17. Nb6 {[%clk 0:01:20]} 17... Rd8 {[%clk 0:02:12.8]} 18. Nxd7 {[%clk
0:01:16.9]} 18... Rxd7 {[%clk 0:02:12]} 19. Be3 {[%clk 0:01:02.2]} 19... g5
{[%clk 0:02:03.6]} 20. f4 {[%clk 0:00:57]} 20... gxf4 {[%clk 0:02:04.3]} 21.
gxf4 {[%clk 0:00:58.9]} 21... Ng6 {[%clk 0:02:04.9]} 22. Rf1 {[%clk 0:00:46.5]}
22... e5 {[%clk 0:02:04.3]} 23. fxe5 {[%clk 0:00:43.5]} 23... dxe5 {[%clk
0:02:03.2]} 24. Qb6 {[%clk 0:00:44.5]} 24... Qxb6 {[%clk 0:01:57]} 25. axb6
{[%clk 0:00:46.4]} 25... Rg8 {[%clk 0:01:57.4]} 26. Kf2 {[%clk 0:00:38.2]} 26...
Nh4 {[%clk 0:01:57.8]} 27. Bh1 {[%clk 0:00:38.2]} 27... Rd6 {[%clk 0:01:57.9]}
28. c4 {[%clk 0:00:33.6]} 28... Rdg6 {[%clk 0:01:49.6]} 29. Rg1 {[%clk
0:00:31.5]} 29... Kd7 {[%clk 0:01:28.5]} 30. Na5 {[%clk 0:00:31.4]} 30... Rxg1
{[%clk 0:01:09.7]} 31. Rxg1 {[%clk 0:00:31.9]} 31... Rxg1 {[%clk 0:01:10.3]} 32.
Kxg1 {[%clk 0:00:33.2]} 32... Bb4 {[%clk 0:01:08.2]} 33. Nb3 {[%clk 0:00:25.6]}
33... Kd6 {[%clk 0:01:04.3]} 34. Kf2 {[%clk 0:00:24.2]} 34... Ng6 {[%clk
0:01:02.6]} 35. Bf3 {[%clk 0:00:19]} 35... a5 {[%clk 0:00:59.2]} 36. c5+ {[%clk
0:00:18.7]} 36... Ke7 {[%clk 0:00:59.2]} 37. Nd2 {[%clk 0:00:17.8]} 37... Nf8
{[%clk 0:00:55.3]} 38. Nc4 {[%clk 0:00:17]} 38... f6 {[%clk 0:00:56.4]} 39. Nd6
{[%clk 0:00:16.2]} 39... Ne6 {[%clk 0:00:55.1]} 40. Nc8+ {[%clk 0:00:08.2]}
40... Kd8 {[%clk 0:00:55]} 41. Na7 {[%clk 0:00:09.1]} 41... Bxc5 {[%clk
0:00:55.8]} 42. Nxc6+ {[%clk 0:00:09.3]} 42... bxc6 {[%clk 0:00:56.6]} 43. Bg4
{[%clk 0:00:08.7]} 43... Bxe3+ {[%clk 0:00:50.7]} 44. Kxe3 {[%clk 0:00:10.6]}
44... Nc5 {[%clk 0:00:49.3]} 45. Kd2 {[%clk 0:00:05]} 45... Na4 {[%clk
0:00:50.2]} 46. b7 {[%clk 0:00:05.4]} 46... Kc7 {[%clk 0:00:51.2]} 47. Bc8
{[%clk 0:00:07.3]} 47... Nc5 {[%clk 0:00:50.9]} 48. Kc3 {[%clk 0:00:09.2]} 48...
Nxe4+ {[%clk 0:00:50.2]} 49. Kb3 {[%clk 0:00:11.1]} 0-1

[Event "*** MasterClass Titled Tuesday Blitz"]
[Site "Chess.com"]
[Date "2017.10.03"]
[Round "4"]
[White "ruvat"]
[Black "Keaton87"]
[Result "0-1"]
[WhiteElo "2303"]
[BlackElo "2454"]
[TimeControl "180+2"]
[EndTime "13:51:14 PDT"]
[Termination "Keaton87 won on time"]

1. d4 {[%clk 0:03:01.9]} 1... Nf6 {[%clk 0:03:00]} 2. c4 {[%clk 0:03:02]} 2...
g6 {[%clk 0:03:01.2]} 3. Nf3 {[%clk 0:03:02.6]} 3... Bg7 {[%clk 0:03:02.3]} 4.
g3 {[%clk 0:03:02.8]} 4... O-O {[%clk 0:03:03.3]} 5. Bg2 {[%clk 0:03:03.8]} 5...
d5 {[%clk 0:03:05.2]} 6. cxd5 {[%clk 0:03:03.9]} 6... Nxd5 {[%clk 0:03:07.1]} 7.
O-O {[%clk 0:03:05]} 7... Nb6 {[%clk 0:03:07.2]} 8. Nc3 {[%clk 0:03:05.9]} 8...
Nc6 {[%clk 0:03:08.4]} 9. e3 {[%clk 0:03:06.8]} 9... Re8 {[%clk 0:03:06.9]} 10.
d5 {[%clk 0:03:07.1]} 10... Na5 {[%clk 0:03:03.1]} 11. Nd4 {[%clk 0:02:56.2]}
11... Bd7 {[%clk 0:03:02.2]} 12. e4 {[%clk 0:02:53.2]} 12... c6 {[%clk
0:03:02.8]} 13. Bf4 {[%clk 0:02:47]} 13... cxd5 {[%clk 0:03:03.6]} 14. exd5
{[%clk 0:02:46.7]} 14... Rc8 {[%clk 0:03:03.8]} 15. Rc1 {[%clk 0:02:43.6]} 15...
Nac4 {[%clk 0:03:04.4]} 16. b3 {[%clk 0:01:55.6]} 16... Nd6 {[%clk 0:03:05.2]}
17. Re1 {[%clk 0:01:53.1]} 17... Nf5 {[%clk 0:03:06.1]} 18. Be5 {[%clk
0:01:49.3]} 18... Bxe5 {[%clk 0:02:58.5]} 19. Rxe5 {[%clk 0:01:49.7]} 19... Nxd4
{[%clk 0:02:59]} 20. Qxd4 {[%clk 0:01:49.9]} 20... Bf5 {[%clk 0:02:58.2]} 21.
Rce1 {[%clk 0:01:46.8]} 21... Qc7 {[%clk 0:02:56.2]} 22. Nb5 {[%clk 0:01:37.2]}
22... Qc5 {[%clk 0:02:51.8]} 23. a4 {[%clk 0:01:28.3]} 23... Qxd4 {[%clk
0:02:51]} 24. Nxd4 {[%clk 0:01:28.5]} 24... Nd7 {[%clk 0:02:43.2]} 25. R5e3
{[%clk 0:01:01.4]} 25... Kf8 {[%clk 0:02:35.7]} 26. Nxf5 {[%clk 0:00:57.9]}
26... gxf5 {[%clk 0:02:36.7]} 27. Bh3 {[%clk 0:00:59]} 27... Rc5 {[%clk
0:02:32.1]} 28. Rd3 {[%clk 0:00:41.5]} 28... Nf6 {[%clk 0:02:25.1]} 29. Bxf5
{[%clk 0:00:39.4]} 29... Rd8 {[%clk 0:02:26.2]} 30. Red1 {[%clk 0:00:32.8]}
30... Kg7 {[%clk 0:02:12.6]} 31. Bh3 {[%clk 0:00:28.3]} 31... Nxd5 {[%clk
0:02:11.3]} 32. b4 {[%clk 0:00:19.8]} 32... Rc4 {[%clk 0:02:06]} 33. Rxd5 {[%clk
0:00:20]} 33... Rxd5 {[%clk 0:02:07.9]} 34. Rxd5 {[%clk 0:00:20.6]} 34... Rxb4
{[%clk 0:02:09.8]} 35. Rb5 {[%clk 0:00:21.2]} 35... Rxa4 {[%clk 0:02:10.5]} 36.
Rxb7 {[%clk 0:00:22]} 36... Kf6 {[%clk 0:02:11.7]} 37. Bf1 {[%clk 0:00:20.3]}
37... Ra1 {[%clk 0:02:12.5]} 38. Kg2 {[%clk 0:00:21.1]} 38... a5 {[%clk
0:02:13.8]} 39. Bc4 {[%clk 0:00:17.8]} 39... a4 {[%clk 0:02:13.6]} 40. Ra7
{[%clk 0:00:18.7]} 40... a3 {[%clk 0:02:14.6]} 41. Ra5 {[%clk 0:00:17.6]} 41...
Rc1 {[%clk 0:02:15.1]} 42. Bd5 {[%clk 0:00:17.1]} 42... Rc3 {[%clk 0:02:15.6]}
43. h4 {[%clk 0:00:16.4]} 43... e6 {[%clk 0:02:15.9]} 44. Ba2 {[%clk 0:00:16.7]}
44... h6 {[%clk 0:02:16.2]} 45. g4 {[%clk 0:00:17]} 45... Kg6 {[%clk 0:02:16.9]}
46. h5+ {[%clk 0:00:16.9]} 46... Kf6 {[%clk 0:02:17.9]} 47. Ra7 {[%clk
0:00:16.7]} 47... Rd3 {[%clk 0:02:18.2]} 48. Bc4 {[%clk 0:00:16.3]} 48... Rc3
{[%clk 0:02:19.2]} 49. Ra4 {[%clk 0:00:16.5]} 49... Ke5 {[%clk 0:02:18.5]} 50.
Be2 {[%clk 0:00:14.2]} 50... Kf6 {[%clk 0:02:14.9]} 51. f4 {[%clk 0:00:14.5]}
51... Kg7 {[%clk 0:02:10.5]} 52. Bf3 {[%clk 0:00:15.1]} 52... Kf6 {[%clk
0:02:10.8]} 53. Kg3 {[%clk 0:00:16]} 53... Kg7 {[%clk 0:02:12]} 54. g5 {[%clk
0:00:16.5]} 54... Rb3 {[%clk 0:02:12.1]} 55. Kg4 {[%clk 0:00:15.6]} 55... Rc3
{[%clk 0:02:11.6]} 56. Be4 {[%clk 0:00:16.2]} 56... Rb3 {[%clk 0:02:09.8]} 57.
Ra7 {[%clk 0:00:16.4]} 57... Re3 {[%clk 0:02:08.1]} 58. Bc6 {[%clk 0:00:14.6]}
58... hxg5 {[%clk 0:02:01.9]} 59. fxg5 {[%clk 0:00:14.4]} 59... Rc3 {[%clk
0:01:58.6]} 60. Be8 {[%clk 0:00:14.4]} 60... Rc4+ {[%clk 0:01:59.7]} 61. Kg3
{[%clk 0:00:14.2]} 61... Rc3+ {[%clk 0:02:00.9]} 62. Kf4 {[%clk 0:00:14.9]}
62... Rc4+ {[%clk 0:02:02]} 63. Kf3 {[%clk 0:00:15.1]} 63... Rc3+ {[%clk
0:02:03]} 64. Ke4 {[%clk 0:00:16]} 64... Rc4+ {[%clk 0:02:02.7]} 65. Kd3 {[%clk
0:00:16.3]} 65... Rf4 {[%clk 0:02:03.7]} 66. h6+ {[%clk 0:00:15.3]} 66... Kg6
{[%clk 0:02:03.8]} 67. Ke3 {[%clk 0:00:08.6]} 67... Kxg5 {[%clk 0:02:01.1]} 0-1

[Event "*** MasterClass Titled Tuesday Blitz"]
[Site "Chess.com"]
[Date "2017.10.03"]
[Round "4"]
[White "Laico"]
[Black "GeorgMeier"]
[Result "0-1"]
[WhiteElo "2136"]
[BlackElo "2786"]
[TimeControl "180+2"]
[EndTime "13:51:15 PDT"]
[Termination "GeorgMeier won on time"]

1. e4 {[%clk 0:03:01.9]} 1... e6 {[%clk 0:03:00.8]} 2. d4 {[%clk 0:02:54.5]}
2... d5 {[%clk 0:03:02.2]} 3. Nd2 {[%clk 0:02:55.4]} 3... dxe4 {[%clk
0:03:02.9]} 4. Nxe4 {[%clk 0:02:55.9]} 4... Nd7 {[%clk 0:03:04.5]} 5. Bd3 {[%clk
0:02:56.2]} 5... Ngf6 {[%clk 0:03:05.8]} 6. Qe2 {[%clk 0:02:55.5]} 6... c5
{[%clk 0:03:06.5]} 7. Nf3 {[%clk 0:02:41.6]} 7... cxd4 {[%clk 0:03:04.6]} 8.
Nxd4 {[%clk 0:02:36.7]} 8... Nxe4 {[%clk 0:03:05.2]} 9. Qxe4 {[%clk 0:02:37.6]}
9... Nc5 {[%clk 0:03:03.5]} 10. Qe3 {[%clk 0:02:33.1]} 10... Nxd3+ {[%clk
0:03:01.9]} 11. Qxd3 {[%clk 0:02:35]} 11... Be7 {[%clk 0:02:44.6]} 12. Be3
{[%clk 0:02:31.7]} 12... Qa5+ {[%clk 0:02:42.9]} 13. Bd2 {[%clk 0:02:26.1]}
13... Qc7 {[%clk 0:02:27.5]} 14. O-O-O {[%clk 0:02:17.7]} 14... O-O {[%clk
0:02:25.7]} 15. Bc3 {[%clk 0:02:10.6]} 15... Rd8 {[%clk 0:02:08]} 16. Qg3 {[%clk
0:02:10.9]} 16... Qxg3 {[%clk 0:02:04.4]} 17. hxg3 {[%clk 0:02:12.8]} 17... Bd7
{[%clk 0:01:59.4]} 18. f4 {[%clk 0:02:09.1]} 18... Rac8 {[%clk 0:01:58.5]} 19.
Nf3 {[%clk 0:02:04.3]} 19... Bc6 {[%clk 0:01:56.5]} 20. Rxd8+ {[%clk 0:02:00.1]}
20... Rxd8 {[%clk 0:01:58.4]} 21. Rd1 {[%clk 0:02:00.1]} 21... Rxd1+ {[%clk
0:01:56.3]} 22. Kxd1 {[%clk 0:02:02]} 22... h5 {[%clk 0:01:55.3]} 23. Bd4 {[%clk
0:02:00]} 23... a6 {[%clk 0:01:56]} 24. Ke2 {[%clk 0:02:00.5]} 24... f6 {[%clk
0:01:56.3]} 25. Kd3 {[%clk 0:01:50.1]} 25... Kf7 {[%clk 0:01:48.7]} 26. b3
{[%clk 0:01:51.1]} 26... Bd6 {[%clk 0:01:40.1]} 27. a4 {[%clk 0:01:45]} 27...
Kg6 {[%clk 0:01:19]} 28. Nh4+ {[%clk 0:01:43.6]} 28... Kf7 {[%clk 0:01:20]} 29.
Nf3 {[%clk 0:01:44.5]} 29... Bc7 {[%clk 0:01:18.2]} 30. Ke3 {[%clk 0:01:36.9]}
30... Ke7 {[%clk 0:01:00.6]} 31. Bc5+ {[%clk 0:01:37.3]} 31... Ke8 {[%clk
0:01:00.8]} 32. Kd4 {[%clk 0:01:34.9]} 32... Kd7 {[%clk 0:00:56.6]} 33. Bf8
{[%clk 0:01:32.7]} 33... g6 {[%clk 0:00:57.3]} 34. Bc5 {[%clk 0:01:26.5]} 34...
Bxf3 {[%clk 0:00:46.1]} 35. gxf3 {[%clk 0:01:27.3]} 35... e5+ {[%clk 0:00:47.4]}
36. Ke4 {[%clk 0:01:07.2]} 36... exf4 {[%clk 0:00:46.8]} 37. gxf4 {[%clk
0:01:08]} 37... f5+ {[%clk 0:00:40.5]} 38. Ke3 {[%clk 0:01:04.5]} 38... h4
{[%clk 0:00:41.7]} 39. Kf2 {[%clk 0:00:19.9]} 39... Bxf4 {[%clk 0:00:42.1]} 40.
Kg2 {[%clk 0:00:20.3]} 40... g5 {[%clk 0:00:40]} 41. Bd4 {[%clk 0:00:15.1]}
41... g4 {[%clk 0:00:39.6]} 42. Bf2 {[%clk 0:00:09.1]} 42... h3+ {[%clk
0:00:40.4]} 43. Kg1 {[%clk 0:00:09.8]} 43... g3 {[%clk 0:00:42]} 44. Bd4 {[%clk
0:00:09.3]} 44... Kc6 {[%clk 0:00:39.1]} 45. c4 {[%clk 0:00:09.3]} 45... a5
{[%clk 0:00:39.1]} 46. Bc3 {[%clk 0:00:07.5]} 46... Bd6 {[%clk 0:00:38.1]} 0-1